[Event "Titled Tuesday Blitz June 20 Early 2023"]
[White "Veiga, Jose Francisco R P Neves"]
[Black "Corredor Castellanos, Camilo"]
[WhiteFideId "1930087"]
[BlackFideId "4425871"]
[WhiteElo "2319"]
[BlackElo "1994"]
[Result "1/2-1/2"]
[Round "8"]
[TimeControl "180+2"]
[Date "2023.06.20"]
[WhiteClock "0:00:12"]
[BlackClock "0:00:17"]
[Board "110"]

1. c4 {[%clk 0:03:00]}  e5 {[%clk 0:02:58]} 2. Nc3 {[%clk 0:02:58]}  Bb4 {[%clk 0:02:59]} 3. Qb3 {[%clk 0:02:56]}  Be7 {[%clk 0:02:55]} 4. Nf3 {[%clk 0:02:56]}  Nc6 {[%clk 0:02:55]} 5. e3 {[%clk 0:02:53]}  d6 {[%clk 0:02:53]} 6. a3 {[%clk 0:02:53]}  Nf6 {[%clk 0:02:42]} 7. Qc2 {[%clk 0:02:53]}  O-O {[%clk 0:02:41]} 8. Be2 {[%clk 0:02:50]}  Re8 {[%clk 0:02:38]} 9. O-O {[%clk 0:02:47]}  Bf8 {[%clk 0:02:38]} 10. d4 {[%clk 0:02:48]}  exd4 {[%clk 0:02:30]} 11. exd4 {[%clk 0:02:49]}  Bg4 {[%clk 0:02:30]} 12. d5 {[%clk 0:02:48]}  Bxf3 {[%clk 0:02:27]} 13. Bxf3 {[%clk 0:02:48]}  Nd4 {[%clk 0:02:28]} 14. Qd1 {[%clk 0:02:48]}  Nxf3+ {[%clk 0:02:09]} 15. Qxf3 {[%clk 0:02:49]}  Nd7 {[%clk 0:02:10]} 16. b3 {[%clk 0:02:42]}  g6 {[%clk 0:02:07]} 17. Bb2 {[%clk 0:02:41]}  Bg7 {[%clk 0:02:07]} 18. Rae1 {[%clk 0:02:41]}  a5 {[%clk 0:01:49]} 19. Qd1 {[%clk 0:02:32]}  a4 {[%clk 0:01:39]} 20. b4 {[%clk 0:02:30]}  Qh4 {[%clk 0:01:33]} 21. Rxe8+ {[%clk 0:02:17]}  Rxe8 {[%clk 0:01:33]} 22. Qxa4 {[%clk 0:02:17]}  Rd8 {[%clk 0:01:27]} 23. Qb3 {[%clk 0:02:12]}  Ne5 {[%clk 0:01:13]} 24. Nb5 {[%clk 0:02:11]}  c6 {[%clk 0:01:09]} 25. dxc6 {[%clk 0:02:08]}  bxc6 {[%clk 0:01:10]} 26. Nd4 {[%clk 0:02:08]}  c5 {[%clk 0:00:56]} 27. Nb5 {[%clk 0:02:02]}  Qxc4 {[%clk 0:00:48]} 28. Qxc4 {[%clk 0:02:00]}  Nxc4 {[%clk 0:00:49]} 29. Bxg7 {[%clk 0:02:00]}  Kxg7 {[%clk 0:00:50]} 30. Rc1 {[%clk 0:01:59]}  Nxa3 {[%clk 0:00:43]} 31. Nxa3 {[%clk 0:01:59]}  cxb4 {[%clk 0:00:43]} 32. Nb5 {[%clk 0:01:56]}  d5 {[%clk 0:00:39]} 33. Nd4 {[%clk 0:01:56]}  Kf6 {[%clk 0:00:35]} 34. f4 {[%clk 0:01:55]}  Re8 {[%clk 0:00:33]} 35. Kf2 {[%clk 0:01:43]}  Re4 {[%clk 0:00:33]} 36. Ne2 {[%clk 0:01:44]}  Rc4 {[%clk 0:00:28]} 37. Rxc4 {[%clk 0:01:16]}  dxc4 {[%clk 0:00:29]} 38. Ke3 {[%clk 0:01:17]}  b3 {[%clk 0:00:29]} 39. Nc3 {[%clk 0:01:12]}  Kf5 {[%clk 0:00:28]} 40. Kf3 {[%clk 0:01:07]}  h5 {[%clk 0:00:28]} 41. g3 {[%clk 0:01:07]}  f6 {[%clk 0:00:29]} 42. h3 {[%clk 0:01:07]}  g5 {[%clk 0:00:27]} 43. g4+ {[%clk 0:01:08]}  hxg4+ {[%clk 0:00:28]} 44. hxg4+ {[%clk 0:01:08]}  Ke6 {[%clk 0:00:28]} 45. f5+ {[%clk 0:01:09]}  Ke5 {[%clk 0:00:28]} 46. Ke3 {[%clk 0:01:10]}  b2 {[%clk 0:00:28]} 47. Nb1 {[%clk 0:01:00]}  Kd5 {[%clk 0:00:29]} 48. Nc3+ {[%clk 0:00:56]}  Ke5 {[%clk 0:00:29]} 49. Nb1 {[%clk 0:00:45]}  Kd5 {[%clk 0:00:29]} 50. Na3 {[%clk 0:00:41]}  Kc5 {[%clk 0:00:24]} 51. Kd2 {[%clk 0:00:38]}  Kd4 {[%clk 0:00:21]} 52. Kc2 {[%clk 0:00:37]}  Ke4 {[%clk 0:00:20]} 53. Nxc4 {[%clk 0:00:36]}  Kf4 {[%clk 0:00:20]} 54. Kxb2 {[%clk 0:00:35]}  Kxg4 {[%clk 0:00:21]} 55. Nd6 {[%clk 0:00:35]}  Kf4 {[%clk 0:00:21]} 56. Kc3 {[%clk 0:00:35]}  g4 {[%clk 0:00:21]} 57. Kd3 {[%clk 0:00:36]}  Kf3 {[%clk 0:00:22]} 58. Ne4 {[%clk 0:00:28]}  g3 {[%clk 0:00:22]} 59. Nd2+ {[%clk 0:00:12]}  Kg4 {[%clk 0:00:17]} 60. Ke4 {[%clk 0:00:12]}  g2 {[%clk 0:00:17]} 61. Nf3 {[%clk 0:00:12]}  Kg3 {[%clk 0:00:17]} 62. Ke3 {[%clk 0:00:10]}  Kg4 {[%clk 0:00:16]} 63. Ke4 {[%clk 0:00:11]}  Kg3 {[%clk 0:00:16]} 64. Ke3 {[%clk 0:00:11]}  Kg4 {[%clk 0:00:17]} 65. Ke4 {[%clk 0:00:12]} 1/2-1/2


[Site "https://www.chess.com"]

[Event "Titled Tuesday Blitz June 20 Early 2023"]
[White "Arat, Ufuk Sezen"]
[Black "Itkis, Boris"]
[WhiteFideId "6309089"]
[BlackFideId "1209167"]
[WhiteElo "2289"]
[BlackElo "2219"]
[Result "0-1"]
[Round "8"]
[TimeControl "180+2"]
[Date "2023.06.20"]
[WhiteClock "0:02:01"]
[BlackClock "0:02:06"]
[Board "113"]

1. e4 {[%clk 0:02:58]}  e6 {[%clk 0:03:00]} 2. d4 {[%clk 0:02:58]}  d5 {[%clk 0:03:01]} 3. Nc3 {[%clk 0:02:58]}  Bb4 {[%clk 0:03:01]} 4. exd5 {[%clk 0:02:58]}  exd5 {[%clk 0:03:02]} 5. Bd3 {[%clk 0:02:59]}  Nf6 {[%clk 0:03:02]} 6. a3 {[%clk 0:03:00]}  Bxc3+ {[%clk 0:03:01]} 7. bxc3 {[%clk 0:03:00]}  O-O {[%clk 0:03:01]} 8. Ne2 {[%clk 0:03:01]}  Bg4 {[%clk 0:03:00]} 9. f3 {[%clk 0:03:02]}  Bh5 {[%clk 0:03:00]} 10. O-O {[%clk 0:03:02]}  c5 {[%clk 0:02:50]} 11. dxc5 {[%clk 0:03:01]}  Nbd7 {[%clk 0:02:48]} 12. Be3 {[%clk 0:02:58]}  Re8 {[%clk 0:02:47]} 13. Qd2 {[%clk 0:02:54]}  Qc7 {[%clk 0:02:46]} 14. Nf4 {[%clk 0:02:48]}  Bg6 {[%clk 0:02:45]} 15. Bxg6 {[%clk 0:02:43]}  hxg6 {[%clk 0:02:46]} 16. Rfe1 {[%clk 0:02:40]}  Qc6 {[%clk 0:02:41]} 17. Rad1 {[%clk 0:02:38]}  Nxc5 {[%clk 0:02:24]} 18. Nxd5 {[%clk 0:02:36]}  Nxd5 {[%clk 0:02:25]} 19. Qxd5 {[%clk 0:02:36]}  Qxd5 {[%clk 0:02:26]} 20. Rxd5 {[%clk 0:02:36]}  Rac8 {[%clk 0:02:25]} 21. Kf2 {[%clk 0:02:33]}  Na4 {[%clk 0:02:25]} 22. Bd2 {[%clk 0:02:18]}  Rxe1 {[%clk 0:02:25]} 23. Kxe1 {[%clk 0:02:15]}  Nb6 {[%clk 0:02:21]} 24. Ra5 {[%clk 0:02:14]}  a6 {[%clk 0:02:20]} 25. Re5 {[%clk 0:02:09]}  Nc4 {[%clk 0:02:19]} 26. Re7 {[%clk 0:02:08]}  b5 {[%clk 0:02:19]} 27. Ra7 {[%clk 0:02:07]}  Re8+ {[%clk 0:02:17]} 28. Kd1 {[%clk 0:02:05]}  Rd8 {[%clk 0:02:17]} 29. Rxa6 {[%clk 0:02:05]}  Rxd2+ {[%clk 0:02:17]} 30. Kc1 {[%clk 0:02:06]}  Rxg2 {[%clk 0:02:17]} 31. Kb1 {[%clk 0:02:06]}  Rg1+ {[%clk 0:02:10]} 32. Ka2 {[%clk 0:02:04]}  Rc1 {[%clk 0:02:11]} 33. Ra8+ {[%clk 0:02:04]}  Kh7 {[%clk 0:02:11]} 34. a4 {[%clk 0:02:03]}  Rxc2+ {[%clk 0:02:09]} 35. Kb1 {[%clk 0:02:03]}  Rb2+ {[%clk 0:02:09]} 36. Kc1 {[%clk 0:02:01]}  Ra2 {[%clk 0:02:06]} 0-1


[Site "https://www.chess.com"]

[Event "Titled Tuesday Blitz June 20 Early 2023"]
[White "Mendez Fortes, Eduardo Jesus"]
[Black "Mrudul Dehankar"]
[WhiteFideId "3502376"]
[BlackFideId "25096990"]
[WhiteElo "2307"]
[BlackElo "2139"]
[Result "1-0"]
[Round "8"]
[TimeControl "180+2"]
[Date "2023.06.20"]
[WhiteClock "0:01:18"]
[BlackClock "0:00:01"]
[Board "114"]

1. e4 {[%clk 0:02:58]}  c6 {[%clk 0:02:58]} 2. d4 {[%clk 0:02:57]}  d5 {[%clk 0:02:59]} 3. e5 {[%clk 0:02:58]}  Bf5 {[%clk 0:02:58]} 4. Nf3 {[%clk 0:02:58]}  e6 {[%clk 0:02:58]} 5. Be2 {[%clk 0:02:58]}  c5 {[%clk 0:02:58]} 6. Be3 {[%clk 0:02:55]}  Nc6 {[%clk 0:02:57]} 7. dxc5 {[%clk 0:02:54]}  Qc7 {[%clk 0:02:51]} 8. c3 {[%clk 0:02:44]}  a6 {[%clk 0:02:40]} 9. Bd4 {[%clk 0:02:42]}  Nge7 {[%clk 0:02:29]} 10. O-O {[%clk 0:02:38]}  Ng6 {[%clk 0:02:29]} 11. Re1 {[%clk 0:02:38]}  Be7 {[%clk 0:02:27]} 12. Bd3 {[%clk 0:02:31]}  Bxd3 {[%clk 0:02:20]} 13. Qxd3 {[%clk 0:02:31]}  O-O {[%clk 0:02:20]} 14. Nbd2 {[%clk 0:02:30]}  a5 {[%clk 0:02:17]} 15. g3 {[%clk 0:02:28]}  a4 {[%clk 0:02:16]} 16. h4 {[%clk 0:02:27]}  Rfe8 {[%clk 0:02:05]} 17. Kg2 {[%clk 0:02:24]}  Nf8 {[%clk 0:02:02]} 18. b4 {[%clk 0:02:17]}  axb3 {[%clk 0:01:53]} 19. axb3 {[%clk 0:02:18]}  Rxa1 {[%clk 0:01:48]} 20. Rxa1 {[%clk 0:02:18]}  Nd7 {[%clk 0:01:48]} 21. Qe3 {[%clk 0:02:11]}  Bf8 {[%clk 0:01:29]} 22. b4 {[%clk 0:02:04]}  f6 {[%clk 0:01:24]} 23. Re1 {[%clk 0:02:03]}  f5 {[%clk 0:01:17]} 24. Ra1 {[%clk 0:01:56]}  h6 {[%clk 0:01:02]} 25. h5 {[%clk 0:01:54]}  Rc8 {[%clk 0:00:56]} 26. Nb3 {[%clk 0:01:52]}  Qd8 {[%clk 0:00:52]} 27. Nc1 {[%clk 0:01:45]}  Ra8 {[%clk 0:00:51]} 28. Rxa8 {[%clk 0:01:44]}  Qxa8 {[%clk 0:00:51]} 29. Nd3 {[%clk 0:01:43]}  Qa2 {[%clk 0:00:45]} 30. Nf4 {[%clk 0:01:43]}  Kf7 {[%clk 0:00:43]} 31. Qd3 {[%clk 0:01:34]}  Qb3 {[%clk 0:00:30]} 32. g4 {[%clk 0:01:27]}  fxg4 {[%clk 0:00:06]} 33. Qg6+ {[%clk 0:01:26]}  Ke7 {[%clk 0:00:06]} 34. Qxe6+ {[%clk 0:01:22]}  Kd8 {[%clk 0:00:07]} 35. Qxg4 {[%clk 0:01:22]}  Qc4 {[%clk 0:00:03]} 36. Ne6+ {[%clk 0:01:18]}  Kc8 {[%clk 0:00:01]} 37. Nxf8 {[%clk 0:01:18]} 1-0


[Site "https://www.chess.com"]

[Event "Titled Tuesday Blitz June 20 Early 2023"]
[White "Gomes, Luiz Alexandre de Souza"]
[Black "Pastar, Slaven"]
[WhiteFideId "2102790"]
[BlackFideId "14402718"]
[WhiteElo "2423"]
[BlackElo "2219"]
[Result "0-1"]
[Round "8"]
[TimeControl "180+2"]
[Date "2023.06.20"]
[WhiteClock "0:00:00"]
[BlackClock "0:00:37"]
[Board "115"]

1. e4 {[%clk 0:02:48]}  b6 {[%clk 0:03:00]} 2. d4 {[%clk 0:02:48]}  Bb7 {[%clk 0:03:01]} 3. Bd3 {[%clk 0:02:48]}  Nf6 {[%clk 0:03:01]} 4. Qe2 {[%clk 0:02:48]}  e6 {[%clk 0:03:02]} 5. Nf3 {[%clk 0:02:48]}  d5 {[%clk 0:03:02]} 6. e5 {[%clk 0:02:48]}  Ne4 {[%clk 0:03:03]} 7. Nbd2 {[%clk 0:02:48]}  Nxd2 {[%clk 0:03:03]} 8. Bxd2 {[%clk 0:02:47]}  c5 {[%clk 0:03:04]} 9. c3 {[%clk 0:02:48]}  Be7 {[%clk 0:03:04]} 10. O-O {[%clk 0:02:48]}  a5 {[%clk 0:03:05]} 11. a3 {[%clk 0:02:24]}  Ba6 {[%clk 0:03:04]} 12. Bxa6 {[%clk 0:02:21]}  Nxa6 {[%clk 0:03:03]} 13. Qb5+ {[%clk 0:02:19]}  Qd7 {[%clk 0:03:02]} 14. Qxb6 {[%clk 0:02:14]}  O-O {[%clk 0:02:43]} 15. Qb3 {[%clk 0:02:14]}  Rfb8 {[%clk 0:02:38]} 16. Qc2 {[%clk 0:02:14]}  a4 {[%clk 0:02:35]} 17. Rad1 {[%clk 0:02:06]}  h6 {[%clk 0:02:25]} 18. Bc1 {[%clk 0:02:03]}  Rc8 {[%clk 0:02:23]} 19. Rfe1 {[%clk 0:01:59]}  Rab8 {[%clk 0:02:23]} 20. g3 {[%clk 0:01:56]}  Rb7 {[%clk 0:02:21]} 21. h4 {[%clk 0:01:56]}  Nb8 {[%clk 0:02:21]} 22. Kg2 {[%clk 0:01:51]}  Qb5 {[%clk 0:02:21]} 23. g4 {[%clk 0:01:47]}  Nc6 {[%clk 0:02:13]} 24. g5 {[%clk 0:01:45]}  cxd4 {[%clk 0:02:05]} 25. Nxd4 {[%clk 0:01:42]}  Nxd4 {[%clk 0:02:03]} 26. Rxd4 {[%clk 0:01:42]}  Rc4 {[%clk 0:02:03]} 27. gxh6 {[%clk 0:01:32]}  gxh6 {[%clk 0:01:56]} 28. Red1 {[%clk 0:00:56]}  Kf8 {[%clk 0:01:28]} 29. Qh7 {[%clk 0:00:54]}  Ke8 {[%clk 0:01:27]} 30. Qxh6 {[%clk 0:00:54]}  Bc5 {[%clk 0:01:06]} 31. Qh8+ {[%clk 0:00:52]}  Kd7 {[%clk 0:01:03]} 32. Rxc4 {[%clk 0:00:50]}  Qxc4 {[%clk 0:01:04]} 33. Qf6 {[%clk 0:00:47]}  Qg4+ {[%clk 0:01:02]} 34. Kh2 {[%clk 0:00:43]}  Qxd1 {[%clk 0:00:57]} 35. Qxf7+ {[%clk 0:00:44]}  Kc6 {[%clk 0:00:57]} 36. Qxe6+ {[%clk 0:00:44]}  Kb5 {[%clk 0:00:54]} 37. Bf4 {[%clk 0:00:18]}  Bxf2 {[%clk 0:00:47]} 38. Qe8+ {[%clk 0:00:15]}  Kb6 {[%clk 0:00:43]} 39. Qd8+ {[%clk 0:00:11]}  Ka6 {[%clk 0:00:38]} 40. Qa8+ {[%clk 0:00:00]}  Ba7 {[%clk 0:00:37]} 0-1


[Site "https://www.chess.com"]

[Event "Titled Tuesday Blitz June 20 Early 2023"]
[White "Gatterer, Florian"]
[Black "Bodnaruk, Anastasia"]
[WhiteFideId "811688"]
[BlackFideId "4181751"]
[WhiteElo "2221"]
[BlackElo "2304"]
[Result "0-1"]
[Round "8"]
[TimeControl "180+2"]
[Date "2023.06.20"]
[WhiteClock "0:00:00"]
[BlackClock "0:01:43"]
[Board "116"]

1. c4 {[%clk 0:03:00]}  Nf6 {[%clk 0:02:59]} 2. Nf3 {[%clk 0:03:00]}  g6 {[%clk 0:03:00]} 3. b3 {[%clk 0:03:01]}  Bg7 {[%clk 0:03:00]} 4. Bb2 {[%clk 0:03:02]}  c5 {[%clk 0:02:59]} 5. g3 {[%clk 0:03:02]}  d6 {[%clk 0:02:59]} 6. d4 {[%clk 0:03:01]}  Ne4 {[%clk 0:02:56]} 7. Nbd2 {[%clk 0:02:54]}  Qa5 {[%clk 0:02:55]} 8. Bg2 {[%clk 0:02:53]}  cxd4 {[%clk 0:02:44]} 9. Nxd4 {[%clk 0:02:47]}  Nc3 {[%clk 0:02:37]} 10. Bxc3 {[%clk 0:02:30]}  Qxc3 {[%clk 0:02:37]} 11. Nb5 {[%clk 0:02:30]}  Qxa1 {[%clk 0:02:30]} 12. Qxa1 {[%clk 0:02:19]}  Bxa1 {[%clk 0:02:29]} 13. Nc7+ {[%clk 0:02:18]}  Kd8 {[%clk 0:02:25]} 14. Nxa8 {[%clk 0:02:18]}  Nc6 {[%clk 0:02:25]} 15. O-O {[%clk 0:02:13]}  Bg7 {[%clk 0:02:18]} 16. Rd1 {[%clk 0:01:52]}  Bf5 {[%clk 0:02:07]} 17. c5 {[%clk 0:01:42]}  Kd7 {[%clk 0:01:54]} 18. cxd6 {[%clk 0:01:36]}  Rxa8 {[%clk 0:01:50]} 19. Nc4 {[%clk 0:00:00]}  e5 {[%clk 0:01:43]} 0-1


[Site "https://www.chess.com"]

[Event "Titled Tuesday Blitz June 20 Early 2023"]
[White "Adla, Diego"]
[Black "Carrasco Miranda, Andres"]
[WhiteFideId "100072"]
[BlackFideId "3405990"]
[WhiteElo "2377"]
[BlackElo "2183"]
[Result "1-0"]
[Round "8"]
[TimeControl "180+2"]
[Date "2023.06.20"]
[WhiteClock "0:02:06"]
[BlackClock "0:01:11"]
[Board "117"]

1. c4 {[%clk 0:03:00]}  Nf6 {[%clk 0:02:54]} 2. Nc3 {[%clk 0:03:00]}  g6 {[%clk 0:02:49]} 3. e4 {[%clk 0:03:00]}  e5 {[%clk 0:02:49]} 4. Nf3 {[%clk 0:02:58]}  Bg7 {[%clk 0:02:49]} 5. d4 {[%clk 0:02:59]}  exd4 {[%clk 0:02:48]} 6. Nxd4 {[%clk 0:03:00]}  O-O {[%clk 0:02:47]} 7. Be2 {[%clk 0:03:01]}  Re8 {[%clk 0:02:48]} 8. f3 {[%clk 0:03:01]}  c6 {[%clk 0:02:43]} 9. O-O {[%clk 0:03:01]}  d5 {[%clk 0:02:43]} 10. exd5 {[%clk 0:03:00]}  cxd5 {[%clk 0:02:44]} 11. c5 {[%clk 0:03:01]}  Nc6 {[%clk 0:02:41]} 12. Bb5 {[%clk 0:02:54]}  Bd7 {[%clk 0:02:39]} 13. Bxc6 {[%clk 0:02:54]}  bxc6 {[%clk 0:02:38]} 14. Bf4 {[%clk 0:02:51]}  Nh5 {[%clk 0:02:33]} 15. Bd6 {[%clk 0:02:51]}  Qh4 {[%clk 0:02:33]} 16. f4 {[%clk 0:02:44]}  Bg4 {[%clk 0:02:21]} 17. Qd2 {[%clk 0:02:42]}  Rac8 {[%clk 0:01:38]} 18. f5 {[%clk 0:02:12]}  Bxf5 {[%clk 0:01:19]} 19. Nxf5 {[%clk 0:02:10]}  gxf5 {[%clk 0:01:19]} 20. Rxf5 {[%clk 0:02:06]}  Bd4+ {[%clk 0:01:17]} 21. Kh1 {[%clk 0:02:06]}  Ng3+ {[%clk 0:01:11]} 22. Bxg3 {[%clk 0:02:06]} 1-0


[Site "https://www.chess.com"]

[Event "Titled Tuesday Blitz June 20 Early 2023"]
[White "Slavin, Alexey"]
[Black "Goffredo_Fofi"]
[WhiteFideId "24104388"]
[WhiteElo "2264"]
[BlackElo "2507"]
[Result "0-1"]
[Round "8"]
[TimeControl "180+2"]
[Date "2023.06.20"]
[WhiteClock "0:00:00"]
[BlackClock "0:00:38"]
[Board "122"]

1. e4 {[%clk 0:02:59]}  Nf6 {[%clk 0:02:54]} 2. Nc3 {[%clk 0:02:58]}  e5 {[%clk 0:02:54]} 3. Nf3 {[%clk 0:02:57]}  Nc6 {[%clk 0:02:54]} 4. Bb5 {[%clk 0:02:56]}  Nd4 {[%clk 0:02:54]} 5. Bc4 {[%clk 0:02:54]}  Bc5 {[%clk 0:02:53]} 6. O-O {[%clk 0:02:53]}  d6 {[%clk 0:02:52]} 7. h3 {[%clk 0:02:51]}  c6 {[%clk 0:02:48]} 8. d3 {[%clk 0:02:48]}  b5 {[%clk 0:02:48]} 9. Bb3 {[%clk 0:02:48]}  a5 {[%clk 0:02:48]} 10. Nxd4 {[%clk 0:02:47]}  exd4 {[%clk 0:02:43]} 11. e5 {[%clk 0:02:42]}  dxe5 {[%clk 0:02:37]} 12. Re1 {[%clk 0:02:36]}  O-O {[%clk 0:02:13]} 13. Nxb5 {[%clk 0:02:07]}  cxb5 {[%clk 0:02:11]} 14. a4 {[%clk 0:02:03]}  bxa4 {[%clk 0:02:08]} 15. Bxa4 {[%clk 0:02:00]}  Qc7 {[%clk 0:02:04]} 16. Bg5 {[%clk 0:01:52]}  Nd5 {[%clk 0:01:44]} 17. Bb3 {[%clk 0:01:47]}  Bb7 {[%clk 0:01:36]} 18. Qf3 {[%clk 0:01:14]}  Nf4 {[%clk 0:01:11]} 19. Qg3 {[%clk 0:01:13]}  Kh8 {[%clk 0:01:07]} 20. f3 {[%clk 0:01:04]}  Bd6 {[%clk 0:01:02]} 21. Qf2 {[%clk 0:00:57]}  Nd5 {[%clk 0:01:00]} 22. Bd2 {[%clk 0:00:53]}  Bc6 {[%clk 0:00:58]} 23. Qh4 {[%clk 0:00:44]}  a4 {[%clk 0:00:58]} 24. Bc4 {[%clk 0:00:44]}  Nb4 {[%clk 0:00:55]} 25. Rac1 {[%clk 0:00:42]}  Nd5 {[%clk 0:00:49]} 26. Kh1 {[%clk 0:00:33]}  a3 {[%clk 0:00:49]} 27. bxa3 {[%clk 0:00:32]}  Rxa3 {[%clk 0:00:49]} 28. Rb1 {[%clk 0:00:22]}  Nf4 {[%clk 0:00:49]} 29. Qg4 {[%clk 0:00:10]}  f5 {[%clk 0:00:44]} 30. Qg3 {[%clk 0:00:09]}  Nd5 {[%clk 0:00:42]} 31. Qf2 {[%clk 0:00:09]}  f4 {[%clk 0:00:40]} 32. Qe2 {[%clk 0:00:08]}  Ne3 {[%clk 0:00:40]} 33. Bxe3 {[%clk 0:00:07]}  fxe3 {[%clk 0:00:41]} 34. Rb2 {[%clk 0:00:04]}  Rb8 {[%clk 0:00:37]} 35. Rxb8+ {[%clk 0:00:00]}  Qxb8 {[%clk 0:00:38]} 0-1


[Site "https://www.chess.com"]

[Event "Titled Tuesday Blitz June 20 Early 2023"]
[White "Ritvin, Stanislav"]
[Black "Lehtosaari, Mauri"]
[WhiteFideId "2011751"]
[BlackFideId "501999"]
[WhiteElo "2386"]
[BlackElo "2505"]
[Result "0-1"]
[Round "8"]
[TimeControl "180+2"]
[Date "2023.06.20"]
[WhiteClock "0:00:30"]
[BlackClock "0:00:10"]
[Board "123"]

1. d4 {[%clk 0:02:31]}  d5 {[%clk 0:02:58]} 2. c4 {[%clk 0:02:30]}  c6 {[%clk 0:02:56]} 3. Nc3 {[%clk 0:02:30]}  Nf6 {[%clk 0:02:55]} 4. Nf3 {[%clk 0:02:30]}  dxc4 {[%clk 0:02:49]} 5. a4 {[%clk 0:02:29]}  Bf5 {[%clk 0:02:49]} 6. e3 {[%clk 0:02:29]}  e6 {[%clk 0:02:49]} 7. Bxc4 {[%clk 0:02:29]}  Bb4 {[%clk 0:02:49]} 8. O-O {[%clk 0:02:29]}  O-O {[%clk 0:02:50]} 9. Qe2 {[%clk 0:02:25]}  Bg6 {[%clk 0:02:46]} 10. e4 {[%clk 0:02:23]}  Bxc3 {[%clk 0:02:42]} 11. bxc3 {[%clk 0:02:23]}  Nxe4 {[%clk 0:02:42]} 12. Qb2 {[%clk 0:02:23]}  Qb6 {[%clk 0:02:38]} 13. Qa3 {[%clk 0:02:22]}  Qa5 {[%clk 0:02:30]} 14. Qb3 {[%clk 0:02:15]}  Qxc3 {[%clk 0:02:13]} 15. Qxb7 {[%clk 0:02:14]}  Qxa1 {[%clk 0:01:31]} 16. Qxa8 {[%clk 0:02:14]}  Qxa4 {[%clk 0:01:31]} 17. Bd3 {[%clk 0:02:07]}  Nd7 {[%clk 0:01:29]} 18. Qb7 {[%clk 0:02:06]}  Ndf6 {[%clk 0:01:28]} 19. Bf4 {[%clk 0:01:51]}  h6 {[%clk 0:01:23]} 20. Be5 {[%clk 0:01:49]}  Bh5 {[%clk 0:01:17]} 21. Rc1 {[%clk 0:01:33]}  Bxf3 {[%clk 0:01:09]} 22. gxf3 {[%clk 0:01:34]}  Ng5 {[%clk 0:01:06]} 23. Be2 {[%clk 0:01:24]}  Qa2 {[%clk 0:00:48]} 24. Kf1 {[%clk 0:01:18]}  Nd5 {[%clk 0:00:35]} 25. Qxc6 {[%clk 0:01:17]}  a5 {[%clk 0:00:29]} 26. h4 {[%clk 0:01:15]}  Nh7 {[%clk 0:00:28]} 27. Bd6 {[%clk 0:01:08]}  Rd8 {[%clk 0:00:25]} 28. Bc4 {[%clk 0:00:53]}  Qd2 {[%clk 0:00:25]} 29. Bxd5 {[%clk 0:00:53]}  exd5 {[%clk 0:00:26]} 30. Qc8 {[%clk 0:00:45]}  Rxc8 {[%clk 0:00:22]} 31. Rxc8+ {[%clk 0:00:43]}  Nf8 {[%clk 0:00:23]} 32. Bxf8 {[%clk 0:00:44]}  Kh7 {[%clk 0:00:18]} 33. Bc5 {[%clk 0:00:43]}  a4 {[%clk 0:00:18]} 34. Ra8 {[%clk 0:00:43]}  Qd3+ {[%clk 0:00:15]} 35. Kg2 {[%clk 0:00:43]}  Qb5 {[%clk 0:00:16]} 36. Ra7 {[%clk 0:00:43]}  Kg6 {[%clk 0:00:16]} 37. Kg3 {[%clk 0:00:43]}  h5 {[%clk 0:00:16]} 38. Kg2 {[%clk 0:00:41]}  Qc4 {[%clk 0:00:17]} 39. Kg3 {[%clk 0:00:41]}  f6 {[%clk 0:00:16]} 40. Kg2 {[%clk 0:00:39]}  Qb3 {[%clk 0:00:13]} 41. Bf8 {[%clk 0:00:39]}  Kf5 {[%clk 0:00:13]} 42. Bxg7 {[%clk 0:00:38]}  a3 {[%clk 0:00:13]} 43. Bf8 {[%clk 0:00:38]}  a2 {[%clk 0:00:11]} 44. Be7 {[%clk 0:00:35]}  Qb2 {[%clk 0:00:10]} 45. Ra6 {[%clk 0:00:30]}  Qxd4 {[%clk 0:00:10]} 0-1


[Site "https://www.chess.com"]

[Event "Titled Tuesday Blitz June 20 Early 2023"]
[White "Kochiev, Ivan"]
[Black "Petrova, Irina"]
[WhiteFideId "2917890"]
[BlackFideId "14124122"]
[WhiteElo "2287"]
[BlackElo "2084"]
[Result "1/2-1/2"]
[Round "8"]
[TimeControl "180+2"]
[Date "2023.06.20"]
[WhiteClock "0:00:07"]
[BlackClock "0:00:09"]
[Board "124"]

1. e4 {[%clk 0:03:00]}  d6 {[%clk 0:03:00]} 2. d4 {[%clk 0:03:00]}  Nf6 {[%clk 0:03:01]} 3. Bd3 {[%clk 0:03:00]}  e5 {[%clk 0:03:01]} 4. c3 {[%clk 0:03:00]}  d5 {[%clk 0:02:58]} 5. dxe5 {[%clk 0:02:55]}  Nxe4 {[%clk 0:02:57]} 6. Nd2 {[%clk 0:02:53]}  Nc5 {[%clk 0:02:57]} 7. Bc2 {[%clk 0:02:52]}  Be7 {[%clk 0:02:57]} 8. Ngf3 {[%clk 0:02:48]}  Nc6 {[%clk 0:02:57]} 9. O-O {[%clk 0:02:49]}  Bg4 {[%clk 0:02:57]} 10. h3 {[%clk 0:02:50]}  Bh5 {[%clk 0:02:56]} 11. Re1 {[%clk 0:02:50]}  Bg6 {[%clk 0:02:54]} 12. Nb3 {[%clk 0:02:50]}  Ne6 {[%clk 0:02:49]} 13. Nbd4 {[%clk 0:02:48]}  Ncxd4 {[%clk 0:02:47]} 14. cxd4 {[%clk 0:02:49]}  Bxc2 {[%clk 0:02:42]} 15. Qxc2 {[%clk 0:02:48]}  O-O {[%clk 0:02:42]} 16. Bd2 {[%clk 0:02:25]}  c6 {[%clk 0:02:41]} 17. b4 {[%clk 0:02:24]}  Qb6 {[%clk 0:02:40]} 18. Qc3 {[%clk 0:02:18]}  h6 {[%clk 0:02:28]} 19. a4 {[%clk 0:02:17]}  a6 {[%clk 0:02:18]} 20. a5 {[%clk 0:02:16]}  Qb5 {[%clk 0:02:16]} 21. Rec1 {[%clk 0:02:11]}  f6 {[%clk 0:01:58]} 22. exf6 {[%clk 0:02:04]}  Bxf6 {[%clk 0:01:59]} 23. Be3 {[%clk 0:02:01]}  Rae8 {[%clk 0:01:57]} 24. Ne1 {[%clk 0:02:00]}  Ng5 {[%clk 0:01:40]} 25. Nd3 {[%clk 0:01:49]}  Ne4 {[%clk 0:01:38]} 26. Qc2 {[%clk 0:01:48]}  Bh4 {[%clk 0:01:28]} 27. Ne5 {[%clk 0:01:35]}  Bxf2+ {[%clk 0:01:15]} 28. Bxf2 {[%clk 0:01:34]}  Rxf2 {[%clk 0:01:16]} 29. Qd1 {[%clk 0:01:23]}  Ref8 {[%clk 0:01:05]} 30. Qg4 {[%clk 0:01:09]}  Qe2 {[%clk 0:00:44]} 31. Qe6+ {[%clk 0:00:43]}  Kh7 {[%clk 0:00:42]} 32. Qg6+ {[%clk 0:00:43]}  Kh8 {[%clk 0:00:42]} 33. Ra3 {[%clk 0:00:44]}  Ng5 {[%clk 0:00:33]} 34. Rg3 {[%clk 0:00:38]}  Rf1+ {[%clk 0:00:23]} 35. Rxf1 {[%clk 0:00:37]}  Qxf1+ {[%clk 0:00:21]} 36. Kh2 {[%clk 0:00:37]}  Qf4 {[%clk 0:00:19]} 37. Qd3 {[%clk 0:00:28]}  Kg8 {[%clk 0:00:15]} 38. Ng6 {[%clk 0:00:27]}  Qb8 {[%clk 0:00:12]} 39. Nxf8 {[%clk 0:00:16]}  Kxf8 {[%clk 0:00:13]} 40. Kg1 {[%clk 0:00:16]}  Ne4 {[%clk 0:00:13]} 41. Rf3+ {[%clk 0:00:14]}  Kg8 {[%clk 0:00:13]} 42. Qe3 {[%clk 0:00:14]}  Qd6 {[%clk 0:00:13]} 43. Qf4 {[%clk 0:00:08]}  Qxb4 {[%clk 0:00:11]} 44. Qf7+ {[%clk 0:00:08]}  Kh7 {[%clk 0:00:11]} 45. Qf5+ {[%clk 0:00:08]}  Kg8 {[%clk 0:00:11]} 46. Qc8+ {[%clk 0:00:08]}  Kh7 {[%clk 0:00:11]} 47. Rf8 {[%clk 0:00:09]}  Qe1+ {[%clk 0:00:10]} 48. Kh2 {[%clk 0:00:09]}  Qg3+ {[%clk 0:00:10]} 49. Kg1 {[%clk 0:00:06]}  Qe1+ {[%clk 0:00:10]} 50. Rf1 {[%clk 0:00:07]}  Qe3+ {[%clk 0:00:09]} 51. Kh2 {[%clk 0:00:07]}  Qxd4 {[%clk 0:00:09]} 52. Qxb7 {[%clk 0:00:06]}  Qe5+ {[%clk 0:00:08]} 53. Kg1 {[%clk 0:00:06]}  Qd4+ {[%clk 0:00:08]} 54. Kh2 {[%clk 0:00:05]}  Qe5+ {[%clk 0:00:09]} 55. Kg1 {[%clk 0:00:06]}  Qd4+ {[%clk 0:00:09]} 56. Kh2 {[%clk 0:00:07]} 1/2-1/2


[Site "https://www.chess.com"]